bitfinex-derivatives/quotes_BNBF0:USTF0_20250529
["timestamp","ask_amount","ask_price","bid_price","bid_amount"]
[1748560384065,0.392,677.07,676.01,0.29585361]
[1748560384066,0.94854543,677.04,676.01,0.29585361]
[1748560384262,0.94854543,677.03,676.01,0.29585361]
[1748560384459,0.94854543,677.02,676.01,0.7656341]
[1748560384661,0.94854543,677.01,676.01,0.7656341]
[1748560384862,0.392,677.07,676.01,0.7656341]
[1748560385062,0.94863609,677.06,676.01,0.29585361]
[1748560385257,0.9486166,677.05,676.01,0.29585361]
[1748560385457,0.9486166,677.04,676.01,0.29585361]
[1748560385758,0.9486166,677.03,676.01,0.29585361]
[1748560385962,0.9486166,677.02,676.01,0.29585361]
[1748560386163,0.392,677.07,676.01,0.29585361]
[1748560386164,0.94870227,677.01,676.01,0.29585361]
[1748560386463,0.94870227,677.0,676.01,0.29585361]
[1748560386662,0.392,677.07,676.01,0.29585361]
[1748560386862,0.94877488,677.06,676.01,0.29585361]
[1748560387164,0.94877488,677.05,676.01,0.29585361]
[1748560387357,0.94877488,677.04,676.01,0.29585361]
[1748560387559,0.94877488,677.03,676.01,0.29585361]
[1748560387762,0.94877488,677.02,676.01,0.29585361]
[1748560387964,0.94877488,677.01,676.01,0.29585361]
[1748560388262,0.94854085,677.0,676.01,0.29585361]
[1748560388462,0.94854085,676.99,676.01,0.29585361]
[1748560388662,0.94854085,676.98,676.01,0.29585361]
[1748560388858,0.94854085,676.97,676.01,0.29585361]
[1748560389060,0.94854085,676.96,676.01,0.29585361]
[1748560389259,0.94854085,676.95,676.01,0.29585361]
[1748560389457,0.94854085,676.94,676.01,0.29585361]
[1748560389661,0.94854085,676.93,676.01,0.29585361]
[1748560389862,0.94843078,676.92,676.01,0.29585361]
[1748560390062,0.94844026,676.91,676.01,0.29585361]
[1748560390262,0.94843234,676.9,676.01,0.29585361]
[1748560390464,0.94843234,676.89,676.01,0.29585361]
[1748560390761,0.94843234,676.88,676.01,0.29585361]
[1748560390961,0.948583,676.87,676.01,0.29585361]
[1748560391162,0.948583,676.86,676.01,0.29585361]
[1748560391467,0.948583,676.85,676.01,0.29585361]
[1748560391671,0.948583,676.84,676.01,0.29585361]
[1748560391961,0.417,676.93,676.01,0.29585361]
[1748560392165,0.94858959,676.92,676.01,0.29585361]
[1748560392464,0.94858959,676.91,676.01,0.29585361]
[1748560392665,0.94858959,676.9,676.01,0.29585361]
[1748560392864,0.94858959,676.89,676.01,0.29585361]
[1748560393084,0.94858959,676.88,676.01,0.29585361]
[1748560393365,0.417,676.93,676.01,0.29585361]
[1748560393563,0.94876112,676.92,676.01,0.29585361]
[1748560393765,0.94876099,676.91,676.01,0.29585361]
[1748560393960,0.94876099,676.9,676.01,0.29585361]
[1748560394163,0.94876099,676.89,676.01,0.29585361]
[1748560394364,0.94876099,676.88,676.01,0.29585361]
[1748560394560,0.94876099,676.87,676.01,0.29585361]
[1748560394765,0.94876099,676.86,676.01,0.29585361]
[1748560394966,0.94876099,676.85,676.01,0.29585361]
[1748560395164,0.94911602,676.84,676.01,0.29585361]
[1748560395465,0.9491146,676.83,676.01,0.29585361]
[1748560395666,0.417,676.93,676.01,0.29585361]
[1748560395867,0.94911456,676.92,676.01,0.29585361]
[1748560396067,0.94911456,676.91,676.01,0.29585361]
[1748560396263,0.94930564,676.9,676.01,0.29585361]
[1748560396463,0.94930564,676.89,676.01,0.29585361]
[1748560396668,0.94931419,676.88,676.01,0.29585361]
[1748560396867,0.417,676.93,676.01,0.29585361]
[1748560397069,0.94931522,676.92,676.01,0.29585361]
[1748560397262,0.94931522,676.91,676.08,0.46978049]
[1748560397468,0.94931522,676.9,676.09,0.46978049]
[1748560397770,0.95059162,676.89,676.09,0.46978049]
[1748560397969,0.95059162,676.88,676.09,0.46978049]
[1748560398165,0.95059162,676.87,676.09,0.46978049]
[1748560398364,0.417,676.93,676.1,0.46978049]
[1748560398564,0.417,676.93,676.09,0.46978049]
[1748560398865,0.417,676.93,676.11,0.46978049]
[1748560399270,0.95086796,676.92,676.05,0.46978049]
[1748560399465,0.95086796,676.91,676.05,0.76561659]
[1748560399665,0.417,676.93,676.05,0.76561659]
[1748560399666,0.95086796,676.9,676.05,0.76561659]
[1748560399868,0.95114655,676.89,676.05,0.76561659]
[1748560400069,0.95114743,676.88,676.05,0.76561659]
[1748560400266,0.95114743,676.87,676.06,0.46978049]
[1748560400464,0.417,676.93,676.06,0.46978049]
[1748560400866,0.95142313,676.92,676.06,0.46978049]
[1748560401171,0.95142313,676.92,676.05,0.2958361]
[1748560401172,0.417,676.93,676.14,0.46978049]
[1748560401866,0.95178288,676.92,676.14,0.46978049]
[1748560402171,0.95178288,676.91,676.14,0.46978049]
[1748560402367,0.95178288,676.9,676.15,0.46978049]
[1748560402573,0.417,676.93,676.15,0.46978049]
[1748560403073,0.417,676.93,676.14,0.46978049]
[1748560403373,0.95223823,676.92,676.15,0.46978049]
[1748560403571,0.417,676.93,676.15,0.46978049]
[1748560403774,0.95222377,676.92,676.15,0.46978049]
[1748560403970,0.95222377,676.91,676.15,0.46978049]
[1748560404170,0.95221289,676.9,676.15,0.46978049]
[1748560404371,0.417,676.93,676.16,0.46978049]
[1748560404568,0.95221311,676.92,676.16,0.46978049]
[1748560404871,0.95225204,676.91,676.16,0.46978049]
[1748560405069,0.95225204,676.9,676.16,0.46978049]
[1748560405272,0.95225204,676.89,676.16,0.46978049]
[1748560405472,0.95225204,676.88,676.16,0.46978049]
[1748560405668,0.95207867,676.87,676.16,0.46978049]
[1748560405871,0.417,676.93,676.16,0.46978049]
[1748560406067,0.95207743,676.92,676.17,0.46978049]
[1748560406273,0.95207743,676.91,676.06,0.46978049]
[1748560406473,0.95207743,676.9,676.07,0.29582735]
[1748560406673,0.417,676.93,676.07,0.29582735]
[1748560406674,0.95207743,676.89,676.07,0.29582735]
[1748560406873,0.95207743,676.88,676.07,0.29582735]
[1748560407070,0.95207743,676.87,676.07,0.29582735]
[1748560407272,0.417,676.93,676.07,0.29582735]
[1748560407273,0.95205015,676.86,676.07,0.76560784]
[1748560407474,0.95205015,676.85,676.07,0.76560784]
[1748560407672,0.95205015,676.84,676.07,0.76560784]
[1748560407870,0.417,676.93,676.07,0.76560784]
[1748560408174,0.95200959,676.92,676.07,0.76560784]
[1748560408374,0.417,676.93,676.07,0.76560784]
[1748560408375,0.95200959,676.91,676.07,0.76560784]
[1748560408676,0.95197387,676.9,676.07,0.76560784]
[1748560408872,0.95197387,676.89,676.07,0.76560784]
[1748560409177,0.9518907,676.88,676.14,0.46978049]
[1748560409369,0.417,676.93,676.14,0.46978049]
[1748560409569,0.9518907,676.92,676.14,0.46978049]
[1748560409773,0.95187374,676.91,676.14,0.46978049]
[1748560409976,0.95187991,676.9,676.14,0.46978049]
[1748560410176,0.95188242,676.89,676.14,0.46978049]
[1748560410376,0.417,676.93,676.13,0.46978049]
[1748560410377,0.95188242,676.88,676.13,0.46978049]
[1748560410577,0.95188242,676.87,676.13,0.46978049]
[1748560410873,0.417,676.93,676.13,0.46978049]
[1748560411072,0.95183852,676.92,676.13,0.46978049]
[1748560411273,0.417,676.93,676.13,0.46978049]
[1748560411475,0.95183933,676.92,676.13,0.46978049]
[1748560411675,0.9518239,676.91,676.13,0.46978049]
[1748560411879,0.9518239,676.9,676.13,0.46978049]
[1748560412072,0.9518239,676.89,676.13,0.46978049]
[1748560412272,0.9518239,676.88,676.13,0.46978049]
[1748560412473,0.9518239,676.87,676.13,0.46978049]
[1748560412672,0.9518239,676.86,676.13,0.46978049]
[1748560412871,0.9518239,676.85,676.13,0.46978049]
[1748560413073,0.9518239,676.84,676.13,0.46978049]
[1748560413277,0.9517741,676.83,676.13,0.46978049]
[1748560413472,0.9517741,676.82,676.13,0.46978049]
[1748560413674,0.417,676.93,676.13,0.46978049]
[1748560413877,0.95174264,676.92,676.13,0.46978049]
[1748560414073,0.417,676.93,676.13,0.46978049]
[1748560414470,0.95174515,676.92,676.13,0.46978049]
[1748560414678,0.95174515,676.91,676.13,0.46978049]
[1748560414878,0.95174515,676.9,676.13,0.46978049]
[1748560415178,0.95174515,676.89,676.1,0.46978049]
[1748560415378,0.95174515,676.88,676.1,0.46978049]
[1748560415677,0.95174515,676.87,676.1,0.46978049]
[1748560415873,0.95174515,676.86,676.1,0.46978049]
[1748560416078,0.95171445,676.85,676.1,0.46978049]
[1748560416271,0.95171445,676.85,676.07,0.29582735]
[1748560416272,0.95171445,676.84,676.21,0.46978049]
[1748560416472,0.417,676.93,676.21,0.46978049]
[1748560416672,0.95155628,676.92,676.21,0.46978049]
[1748560416876,0.95155914,676.91,676.21,0.46978049]
[1748560417076,0.95155914,676.9,676.21,0.46978049]
[1748560417273,0.417,676.93,676.21,0.46978049]
[1748560417274,0.95155914,676.89,676.21,0.46978049]
[1748560417473,0.95155914,676.88,676.21,0.46978049]
[1748560417672,0.417,676.93,676.21,0.46978049]
[1748560417673,0.95155914,676.87,676.21,0.46978049]
[1748560417873,0.95155914,676.86,676.14,0.46978049]
[1748560418076,0.95155914,676.85,676.13,0.46978049]
[1748560418275,0.95155914,676.84,676.13,0.46978049]
[1748560418473,0.95149379,676.83,676.13,0.46978049]
[1748560418672,0.417,676.93,676.13,0.46978049]
[1748560418877,0.95147988,676.92,676.13,0.46978049]
[1748560419078,0.95147988,676.91,676.13,0.46978049]
[1748560419373,0.95152162,676.9,676.13,0.46978049]
[1748560419574,0.417,676.93,676.07,0.29582735]
[1748560419575,0.95151956,676.89,676.09,0.46978049]
[1748560419777,0.95151956,676.88,676.1,0.29581422]
[1748560420078,0.417,676.93,676.1,0.29581422]
[1748560420079,0.95150747,676.87,676.1,0.29581422]
[1748560420279,0.95150747,676.86,676.1,0.29581422]
[1748560420479,0.95150747,676.85,676.1,0.29581422]
[1748560420679,0.95150747,676.84,676.1,0.29581422]
[1748560420978,0.94854085,677.0,676.13,0.46978049]
[1748560421174,0.95143061,676.99,676.13,0.46978049]
[1748560421378,0.95143061,676.98,676.13,0.46978049]
[1748560421579,0.95144409,676.97,676.13,0.46978049]
[1748560421776,0.95144409,676.96,676.13,0.46978049]
[1748560421980,0.95144536,676.95,676.13,0.46978049]
[1748560422180,0.95144536,676.94,676.13,0.46978049]
[1748560422380,0.95144536,676.93,676.13,0.46978049]
[1748560422581,0.95146802,676.92,676.13,0.46978049]
[1748560422778,0.94854085,677.0,676.13,0.46978049]
[1748560422779,0.95146802,676.91,676.13,0.46978049]
[1748560422982,0.94854085,677.0,676.13,0.46978049]
[1748560423284,0.95148998,676.99,676.13,0.46978049]
[1748560423483,0.95148998,676.98,676.13,0.46978049]
[1748560423683,0.95148998,676.97,676.13,0.46978049]
[1748560423879,0.95148998,676.96,676.13,0.46978049]
[1748560424082,0.94854085,677.0,676.13,0.46978049]
[1748560424083,0.95148998,676.95,676.13,0.46978049]
[1748560424382,0.94854085,677.0,676.13,0.46978049]
[1748560424584,0.95153676,676.99,676.13,0.46978049]
[1748560424778,0.95158888,676.98,676.13,0.46978049]
[1748560425082,0.95158888,676.97,676.19,0.46978049]
[1748560425382,0.95157775,676.96,676.19,0.46978049]
[1748560425683,0.95157775,676.95,676.16,0.46978049]
[1748560425883,0.94854085,677.0,676.16,0.46978049]
[1748560426077,0.95162582,676.99,676.16,0.46978049]
[1748560426280,0.94854085,677.0,676.16,0.46978049]
[1748560426478,0.94854085,677.0,676.15,0.46978049]
[1748560426782,0.95164172,676.99,676.15,0.46978049]
[1748560426978,0.95164172,676.98,676.15,0.46978049]
[1748560427177,0.95164172,676.97,676.15,0.46978049]
[1748560427382,0.95164172,676.96,676.15,0.46978049]
[1748560427579,0.95185162,676.95,676.15,0.46978049]
[1748560427784,0.95185162,676.94,676.2,0.46978049]
[1748560427984,0.94854085,677.0,676.19,0.46978049]
[1748560428181,0.95184256,676.99,676.19,0.46978049]
[1748560428484,0.95184256,676.98,676.19,0.46978049]
[1748560428686,0.95184256,676.97,676.19,0.46978049]
[1748560428985,0.95184256,676.96,676.19,0.46978049]
[1748560429284,0.95184256,676.95,676.23,0.46978049]
[1748560429483,0.94854085,677.0,676.23,0.46978049]
[1748560429780,0.95211744,676.99,676.23,0.46978049]
[1748560429980,0.95211744,676.98,676.23,0.46978049]
[1748560430185,0.95211744,676.97,676.25,0.46978049]
[1748560430381,0.95211744,676.96,676.25,0.46978049]
[1748560430688,0.95211744,676.95,676.25,0.46978049]
[1748560430986,0.95216316,676.94,676.25,0.46978049]
[1748560431187,0.95216316,676.93,676.27,0.46978049]
[1748560431487,0.95223757,676.92,676.19,0.46978049]
[1748560431685,0.94854085,677.0,676.2,0.29577048]
[1748560431882,0.95223766,676.99,676.2,0.29577048]
[1748560432086,0.95223766,676.98,676.2,0.29577048]
[1748560432382,0.95223766,676.97,676.2,0.29577048]
[1748560432588,0.95223766,676.96,676.2,0.29577048]
[1748560432787,0.95223766,676.95,676.2,0.29577048]
[1748560433083,0.95220828,676.94,676.2,0.29577048]
[1748560433285,0.95220828,676.93,676.2,0.29577048]
[1748560433487,0.95220828,676.92,676.2,0.29577048]
[1748560433785,0.95220828,676.91,676.2,0.29577048]
[1748560433987,0.94854085,677.0,676.2,0.29577048]
[1748560434187,0.95205675,676.99,676.2,0.29577048]
[1748560434483,0.95205413,676.98,676.2,0.29577048]
[1748560434686,0.95205413,676.97,676.2,0.29577048]
[1748560434882,0.94854085,677.0,676.2,0.29577048]
[1748560435086,0.95194774,676.99,676.2,0.29577048]
[1748560435287,0.95194774,676.98,676.2,0.29577048]
[1748560435587,0.95194774,676.97,676.2,0.29577048]
[1748560435787,0.95194774,676.96,676.2,0.29577048]
[1748560435988,0.95194774,676.95,676.2,0.29577048]
[1748560436186,0.95194774,676.94,676.2,0.29577048]
[1748560436383,0.94854085,677.0,676.2,0.29577048]
[1748560436384,0.95180583,676.93,676.2,0.29577048]
[1748560436582,0.95179759,676.92,676.2,0.29577048]
[1748560436786,0.95179728,676.91,676.2,0.29577048]
[1748560437083,0.95179728,676.9,676.2,0.29577048]
[1748560437288,0.95179728,676.89,676.2,0.29577048]
[1748560437483,0.95179728,676.88,676.2,0.29577048]
[1748560437690,0.95179728,676.87,676.2,0.29577048]
[1748560437982,0.95189581,676.86,676.2,0.29577048]
[1748560438188,0.95189581,676.85,676.2,0.29577048]
[1748560438388,0.94854085,677.0,676.2,0.29577048]
[1748560438684,0.95189411,676.99,676.2,0.29577048]
[1748560438890,0.95189411,676.98,676.2,0.29577048]
[1748560439085,0.95189411,676.97,676.2,0.29577048]
[1748560439286,0.95189027,676.96,676.2,0.29577048]
[1748560439485,0.95189027,676.95,676.2,0.29577048]
[1748560439684,0.95188079,676.94,676.2,0.29577048]
[1748560439883,0.95188243,676.93,676.2,0.29577048]
[1748560440190,0.95188243,676.92,676.2,0.29577048]
[1748560440390,0.95188243,676.91,676.2,0.29577048]
[1748560440588,0.95188243,676.9,676.2,0.29577048]
[1748560440791,0.95189158,676.89,676.2,0.29577048]
[1748560441086,0.95189137,676.88,676.2,0.29577048]
[1748560441290,0.95189137,676.87,676.2,0.29577048]
[1748560441483,0.95189137,676.86,676.2,0.29577048]
[1748560441688,0.95189137,676.85,676.2,0.29577048]
[1748560441986,0.9518873,676.84,676.2,0.29577048]
[1748560442188,0.94854085,677.0,676.2,0.29577048]
[1748560442386,0.9519084,676.99,676.2,0.29577048]
[1748560442585,0.94854085,677.0,676.2,0.29577048]
[1748560442787,0.95193332,676.99,676.2,0.29577048]
[1748560442984,0.94854085,677.0,676.2,0.29577048]
[1748560443186,0.95192505,676.99,676.2,0.29577048]
[1748560443388,0.94854085,677.0,676.2,0.29577048]
[1748560443690,0.9519235,676.99,676.2,0.29577048]
[1748560443891,0.9519235,676.98,676.2,0.29577048]
[1748560444090,0.9519235,676.97,676.2,0.29577048]
[1748560444291,0.95189759,676.96,676.2,0.29577048]
[1748560444491,0.95189759,676.95,676.2,0.29577048]
[1748560444792,0.94854085,677.0,676.2,0.29577048]
[1748560444988,0.95189759,676.99,676.2,0.29577048]
[1748560445192,0.95189759,676.98,676.2,0.29577048]
[1748560445392,0.95189759,676.97,676.2,0.29577048]
[1748560445591,0.95189759,676.96,676.2,0.29577048]
[1748560445788,0.95189759,676.95,676.2,0.29577048]
[1748560445987,0.95189759,676.94,676.2,0.29577048]
[1748560446293,0.94854085,677.0,676.2,0.29577048]
[1748560446489,0.95190778,676.99,676.2,0.29577048]
[1748560446688,0.95190778,676.98,676.2,0.29577048]
[1748560446889,0.95190778,676.97,676.2,0.29577048]
[1748560447088,0.95190778,676.96,676.2,0.29577048]
[1748560447393,0.94854085,677.0,676.2,0.29577048]
[1748560447887,0.95193383,676.99,676.2,0.29577048]
[1748560448089,0.94854085,677.0,676.2,0.29577048]
[1748560449293,0.95188109,676.99,676.2,0.29577048]
[1748560449594,0.95188109,676.98,676.2,0.29577048]
[1748560449794,0.95188109,676.97,676.2,0.29577048]
[1748560449993,0.95188109,676.96,676.2,0.29577048]
[1748560450296,0.94854085,677.0,676.2,0.29577048]
[1748560450593,0.9518658,676.99,676.2,0.29577048]
[1748560450793,0.9518658,676.98,676.2,0.29577048]
[1748560450989,0.9518658,676.97,676.2,0.29577048]
[1748560451188,0.9518658,676.96,676.2,0.29577048]
[1748560451494,0.9518658,676.95,676.2,0.29577048]
[1748560451695,0.9518658,676.94,676.2,0.29577048]
[1748560451893,0.9518658,676.93,676.2,0.29577048]
[1748560452095,0.9518658,676.92,676.2,0.29577048]
[1748560452297,0.95146778,676.91,676.2,0.29577048]
[1748560452492,0.95146778,676.9,676.2,0.29577048]
[1748560452690,0.95146778,676.89,676.2,0.29577048]
[1748560452889,0.95146778,676.88,676.2,0.29577048]
[1748560453090,0.95146778,676.87,676.2,0.29577048]
[1748560453394,0.95149776,676.86,676.2,0.29577048]
[1748560453596,0.95149776,676.85,676.2,0.29577048]
[1748560453895,0.95150003,676.84,676.2,0.29577048]
[1748560454194,0.95152609,676.83,676.2,0.29577048]
[1748560454391,0.95171172,676.82,676.2,0.29577048]
[1748560454593,0.95180562,676.81,676.2,0.29577048]
[1748560454799,0.95180562,676.8,676.2,0.29577048]
[1748560454997,0.95180585,676.79,676.2,0.29577048]
[1748560455297,0.94854085,677.0,676.2,0.29577048]
[1748560455495,0.95198291,676.99,676.2,0.29577048]
[1748560455695,0.95198291,676.98,676.2,0.29577048]
[1748560455998,0.95198291,676.97,676.2,0.29577048]
[1748560456193,0.95198291,676.96,676.27,0.46978049]
[1748560456394,0.95206699,676.95,676.27,0.46978049]
[1748560456594,0.95206699,676.94,676.27,0.46978049]
[1748560456798,0.95207199,676.93,676.27,0.46978049]
[1748560456997,0.95207199,676.92,676.27,0.46978049]
[1748560457194,0.95207199,676.91,676.27,0.46978049]
[1748560457398,0.95207199,676.9,676.27,0.46978049]
[1748560457599,0.95206966,676.89,676.34,0.46978049]
[1748560457799,0.95206966,676.88,676.34,0.46978049]
[1748560457995,0.95206966,676.87,676.33,0.46978049]
[1748560458200,0.95206966,676.86,676.33,0.46978049]
[1748560458401,0.95209581,676.85,676.31,0.46978049]
[1748560458597,0.95209789,676.84,676.31,0.46978049]
[1748560458801,0.94854085,677.0,676.32,0.46978049]
[1748560458802,0.95209789,676.83,676.32,0.46978049]
[1748560459003,0.95210117,676.82,676.32,0.46978049]
[1748560459201,0.95210117,676.81,676.2,0.29577048]
[1748560459408,0.95210117,676.8,676.2,0.29577048]
[1748560459601,0.95210117,676.79,676.2,0.29577048]
[1748560459904,0.94854085,677.0,676.2,0.29577048]
[1748560460105,0.9522043,676.99,676.2,0.29577048]
[1748560460303,0.94854085,677.0,676.2,0.29577048]
[1748560460304,0.95220023,676.98,676.2,0.29577048]
[1748560460505,0.95220321,676.97,676.2,0.29577048]
[1748560460709,0.95220321,676.96,676.2,0.29577048]
[1748560461002,0.94854085,677.0,676.2,0.29577048]
[1748560461207,0.9522064,676.99,676.2,0.29577048]
[1748560461406,0.9522064,676.98,676.2,0.29577048]
[1748560461605,0.9522064,676.97,676.2,0.29577048]
[1748560461809,0.9522064,676.96,676.2,0.29577048]
[1748560462108,0.95194586,676.95,676.2,0.29577048]
[1748560462309,0.94854085,677.0,676.2,0.29577048]
[1748560462512,0.95197683,676.99,676.2,0.29577048]
[1748560462707,0.94854085,677.0,676.2,0.29577048]
[1748560462907,0.95197405,676.99,676.2,0.29577048]
[1748560463210,0.95196338,676.98,676.2,0.29577048]
[1748560463410,0.9519657,676.97,676.2,0.29577048]
[1748560463612,0.95190535,676.96,676.2,0.29577048]
[1748560463810,0.95190535,676.95,676.2,0.29577048]
[1748560464012,1.38645612,676.94,676.2,0.29577048]
[1748560464207,0.95176397,676.93,676.2,0.29577048]
[1748560464412,0.94854085,677.0,676.2,0.29577048]
[1748560464612,1.38637433,676.99,676.2,0.29577048]
[1748560464805,1.38637433,676.98,676.2,0.29577048]
[1748560465009,0.95177227,676.97,676.2,0.29577048]
[1748560465212,0.95177227,676.96,676.2,0.29577048]
[1748560465413,0.95177227,676.95,676.2,0.29577048]
[1748560465713,0.94854085,677.0,676.2,0.29577048]
[1748560465714,0.95154827,676.94,676.2,0.29577048]
[1748560465914,0.94854085,677.0,676.2,0.29577048]
[1748560465915,0.95154827,676.93,676.2,0.29577048]
[1748560466115,0.95154827,676.92,676.2,0.29577048]
[1748560466312,0.94854085,677.0,676.2,0.29577048]
[1748560466510,0.95159394,676.99,676.2,0.29577048]
[1748560466707,0.94854085,677.0,676.2,0.29577048]
[1748560466708,0.95159394,676.98,676.2,0.29577048]
[1748560466915,0.95159394,676.97,676.2,0.29577048]
[1748560467214,0.94854085,677.0,676.2,0.29577048]
[1748560467408,0.95171808,676.99,676.2,0.29577048]
[1748560467609,0.95171808,676.98,676.2,0.29577048]
[1748560467810,0.95171808,676.97,676.2,0.29577048]
[1748560468015,0.95171808,676.96,676.2,0.29577048]
[1748560468317,0.95131183,676.95,676.2,0.29577048]
[1748560468516,0.95131183,676.94,676.2,0.29577048]
[1748560468812,0.95131183,676.93,676.2,0.29577048]
[1748560469017,0.95131183,676.92,676.2,0.29577048]
[1748560469218,0.95124836,676.91,676.2,0.29577048]
[1748560469419,0.95125365,676.9,676.2,0.29577048]
[1748560469620,0.95125365,676.89,676.2,0.29577048]
[1748560469921,0.95125635,676.88,676.2,0.29577048]
[1748560470120,0.95125635,676.87,676.2,0.29577048]
[1748560470421,0.95125635,676.86,676.2,0.29577048]
[1748560470617,0.95125635,676.85,676.2,0.29577048]
[1748560470817,0.95119289,676.84,676.2,0.29577048]
[1748560471122,0.95119755,676.83,676.2,0.29577048]
[1748560471317,0.95120006,676.82,676.2,0.29577048]
[1748560471523,0.94854085,677.0,676.2,0.29577048]
[1748560471723,0.95120006,676.99,676.2,0.29577048]
[1748560471923,0.95120006,676.98,676.2,0.29577048]
[1748560472125,0.95120006,676.97,676.2,0.29577048]
[1748560472423,0.95120006,676.96,676.2,0.29577048]
[1748560472720,0.95120006,676.95,676.2,0.29577048]
[1748560472924,0.95108489,676.94,676.2,0.29577048]
[1748560473124,0.95108489,676.93,676.2,0.29577048]
[1748560473325,0.95108489,676.92,676.2,0.29577048]
[1748560473526,0.95108489,676.91,676.2,0.29577048]
[1748560473727,0.95109328,676.9,676.2,0.29577048]
[1748560473921,0.95109328,676.89,676.2,0.29577048]
[1748560474220,0.95109328,676.88,676.2,0.29577048]
[1748560474421,0.95109328,676.87,676.2,0.29577048]
[1748560474720,0.95106561,676.86,676.2,0.29577048]
[1748560474927,1.38531432,676.85,675.39,0.46978049]
[1748560475125,1.38506866,676.84,675.41,0.29611643]
[1748560475322,1.38506866,676.83,675.41,0.29611643]
[1748560475526,1.38506866,676.82,675.41,0.29611643]
[1748560475827,1.38506866,676.81,675.41,0.29611643]
[1748560476027,1.38506866,676.8,675.41,0.29611643]
[1748560476221,0.94854085,677.0,675.41,0.29611643]
[1748560476422,1.3822195,676.99,675.41,0.29611643]
[1748560476627,1.24396182,677.0,675.41,0.29611643]
[1748560476628,1.38222417,676.98,675.41,0.29611643]
[1748560476822,1.38223644,676.97,675.41,0.29611643]
[1748560477020,1.38223644,676.96,675.41,0.29611643]
[1748560477228,1.38072193,676.95,675.41,0.29611643]
[1748560477529,1.38072193,676.94,675.41,0.29611643]
[1748560477727,1.38072193,676.93,675.41,0.29611643]
[1748560478023,1.38072193,676.92,675.41,0.29611643]
[1748560478223,0.43282353,676.91,675.41,0.29611643]
[1748560478422,1.37966081,676.9,675.41,0.29611643]
[1748560478726,1.69466286,676.89,675.41,0.29611643]
[1748560478927,0.9471712,676.88,675.41,0.29611643]
[1748560479127,0.94651559,676.87,675.41,0.29611643]
[1748560479328,0.94651559,676.86,675.41,0.29611643]
[1748560479528,0.94651559,676.85,675.41,0.29611643]
[1748560479828,0.94651559,676.84,675.41,0.29611643]
[1748560480029,0.94595359,676.83,675.41,0.29611643]
[1748560480329,0.9459489,676.82,675.41,0.29611643]
[1748560480529,0.9459489,676.81,675.41,0.29611643]
[1748560480725,0.9459489,676.8,675.41,0.29611643]
[1748560480922,0.9459489,676.79,675.41,0.29611643]
[1748560481129,0.9459489,676.78,675.41,0.29611643]
[1748560481426,0.94550841,676.77,675.41,0.29611643]
[1748560481630,0.94550825,676.76,675.41,0.29611643]
[1748560481932,0.315,676.89,675.41,0.29611643]
[1748560482229,0.9454467,676.88,675.41,0.29611643]
[1748560482431,0.315,676.89,675.41,0.29611643]
[1748560482931,0.94556756,676.88,675.41,0.29611643]
[1748560483132,0.315,676.89,675.41,0.29611643]
[1748560483334,0.315,676.89,675.54,0.46978049]
[1748560483534,0.94556755,676.88,675.56,0.29605068]
[1748560483734,0.315,676.89,675.56,0.29605068]
[1748560483735,0.94556755,676.87,675.56,0.29605068]
[1748560483934,0.94556755,676.86,675.56,0.29605068]
[1748560484136,0.94556755,676.85,675.56,0.29605068]
[1748560484335,0.94556755,676.84,675.56,0.29605068]
[1748560484631,0.94556755,676.83,675.56,0.29605068]
[1748560484835,0.94556755,676.82,675.56,0.29605068]
[1748560485030,0.94556755,676.81,675.56,0.29605068]
[1748560485237,0.94526066,676.8,675.56,0.29605068]
[1748560485437,0.94526066,676.79,675.56,0.29605068]
[1748560485637,0.315,676.89,675.56,0.29605068]
[1748560485638,0.94526066,676.78,675.56,0.29605068]
[1748560485830,0.94526066,676.77,675.56,0.29605068]
[1748560486035,0.94526066,676.76,675.56,0.29605068]
[1748560486232,0.94526066,676.75,675.56,0.29605068]
[1748560486438,0.94519788,676.74,675.56,0.29605068]
[1748560486737,0.315,676.89,675.56,0.76583117]
[1748560486934,0.94519778,676.88,675.56,0.76583117]
[1748560487133,0.94519778,676.87,675.56,0.29605068]
[1748560487437,0.94519778,676.86,675.56,0.29605068]
[1748560487637,0.94519778,676.85,675.56,0.29605068]
[1748560487834,0.94519778,676.84,675.56,0.29605068]
[1748560488038,0.315,676.89,675.56,0.29605068]
[1748560488239,0.94506921,676.88,675.56,0.29605068]
[1748560488440,0.94506493,676.87,675.56,0.29605068]
[1748560488642,0.94506493,676.86,675.57,0.46978049]
[1748560488835,0.94506493,676.85,675.59,0.29603753]
[1748560489037,0.94506493,676.84,675.59,0.29603753]
[1748560489239,0.94506493,676.83,675.59,0.29603753]
[1748560489439,0.94506493,676.82,675.59,0.29603753]
[1748560489637,0.94506493,676.81,675.59,0.29603753]
[1748560489839,0.315,676.89,675.59,0.29603753]
[1748560489840,0.94506493,676.8,675.59,0.29603753]
[1748560490140,0.94506493,676.79,675.59,0.29603753]
[1748560490336,0.315,676.89,675.59,0.29603753]
[1748560490337,0.94506493,676.78,675.59,0.29603753]
[1748560490540,0.94506493,676.77,675.59,0.29603753]
[1748560490742,0.94506493,676.76,675.59,0.29603753]